Cogmind - Beta 13 @@@ ROGUE MODE // 2024.04.09 @ 19:44:35 Player: Bean Result: Destroyed by G-47 Trooper with Particle Gun Performance ------------- Evolutions (2) 1000 Regions Visited (6) 1200 Robots Destroyed (20) 100 Value Destroyed (482) 482 Prototype IDs (26) 520 Alien Tech Used (0) 0 Bonus (300) 300 TOTAL SCORE: 3602 Bonus ------- Aligned with FarCom 300 Cogmind --------- Core Integrity 0/550 Matter 300/300 Energy 94/100 System Corruption 0% Temperature Cool (9) Movement Core (150) Ox2 Location -8/Materials Parts ------- > --- POWER (2) -------- (None) > --- PROPULSION (2) --- (None) > --- UTILITY (5) ------ Small Storage Unit Modified TNC ECM Suite Hacking Suite > --- WEAPON (2) ------- (None) > --- INVENTORY (8) ---- Deuterium Engine Fission Core Fission Core Fission Core Improved Signal Interpreter Supersonic Drone Bay (1/1) Peak State ------------ > --- POWER ------------ Deuterium Engine Light Nuclear Core > --- PROPULSION ------- Light Treads > --- UTILITY ---------- Small Storage Unit Sensor Array Modified TNC ECM Suite Hacking Suite > --- WEAPON ----------- Small Laser Small Laser > --- INVENTORY -------- Ion Engine Fission Core Fission Core Fission Core Improved Signal Interpreter Supersonic Drone Bay [Rating: 23] Favorites ----------- Power Ion Engine Engine Ion Engine Power Core Light Nuclear Core Propulsion Aluminum Leg Treads Light Treads Leg Aluminum Leg Flight Unit Improved Flight Unit Utility Small Storage Unit Device Sensor Array Storage Small Storage Unit Processor Modified TNC Hackware Hacking Suite Weapon Small Laser Energy Gun Small Laser Ballistic Gun Assault Rifle Build | -11 -10 -9 -9 -9 -8 -8 ------- Run | Yrd Mat Mat Min Exi Min Mat Slots Evolved 4 | . . 2 . . . 2 Power 1 | . . . . . . 1 Propulsion . | . . . . . . . Utility 3 | . . 2 . . . 1 Weapon . | . . . . . . . Parts Attached 24 | 6 4 3 1 2 . 8 Power 6 | 1 2 . . . . 3 Engine 5 | 1 2 . . . . 2 Core 1 | . . . . . . 1 Reactor . | . . . . . . . Propulsion 6 | 2 . . . . . 4 Treads 1 | . . . . . . 1 Leg 3 | 2 . . . . . 1 Wheel . | . . . . . . . Hover . | . . . . . . . Flight 2 | . . . . . . 2 Utility 7 | 1 1 1 1 2 . 1 Device 4 | . . 1 1 1 . 1 Storage 1 | 1 . . . . . . Processor 1 | . . . . 1 . . Hackware 1 | . 1 . . . . . Protection . | . . . . . . . Artifact . | . . . . . . . Weapon 5 | 2 1 2 . . . . Energy Gun 2 | . . 2 . . . . Energy Cannon . | . . . . . . . Ballistic Gun 3 | 2 1 . . . . . Ballistic Cannon . | . . . . . . . Launcher . | . . . . . . . Special Weapon . | . . . . . . . Impact Weapon . | . . . . . . . Slashing Weapon . | . . . . . . . Piercing Weapon . | . . . . . . . Special Melee Weapon . | . . . . . . . Unidentified Prototypes 3 | . . . . 2 . 1 Parts Lost 9 | . . 1 . . . 8 Power 2 | . . . . . . 2 Propulsion 3 | . . . . . . 3 Utility 1 | . . . . . . 1 Weapon 3 | . . 1 . . . 2 Highest Loss Streak 6 | . . 1 . . . 6 To Critical Strikes . | . . . . . . . Average Slot Usage (%) 90 | . 95 83 89 100 100 85 Engine 10 | . 14 11 11 11 11 8 Treads 1 | . . . . . . 2 Leg 17 | . 28 22 22 22 22 9 Device 12 | . . 11 12 14 11 17 Storage 10 | . 14 11 11 11 11 9 Processor 5 | . . . . 7 11 9 Hackware 9 | . 9 11 11 11 11 9 Energy Gun 13 | . . 4 22 22 22 17 Ballistic Gun 6 | . 28 12 . . . . Naked Turns . | . . . . . . . Heaviest Build 24 | 14 14 15 15 15 14 24 Greatest Support 20 | 20 20 20 20 20 20 20 Greatest Overweight (x) 4 | . . . . . . 4 Average Overweight (x) . | . . . . . . . Largest Inventory Capacity 8 | 8 8 8 8 8 8 8 Average Capacity 7 | 6 8 8 8 8 8 8 Most Carried 7 | 2 2 2 1 7 5 7 Average Carried 3 | . . . . 4 5 5 Final Capacity 8 | 8 8 8 8 8 8 8 Final Carried 6 | . 1 . . 5 5 6 Class Distribution -------------------- 59% | Mutant 29% | Skirmisher 10% | Scavenger-Skirmisher Dominant Class ---------------- Mutant | -10/Materials Mutant | -9/Materials Mutant | -9/Mines Mutant | -9/Exiles Mutant | -8/Mines Skirmisher | -8/Materials Resources | -11 -10 -9 -9 -9 -8 -8 ----------- Run | Yrd Mat Mat Min Exi Min Mat Matter Collected 703 | 238 192 86 74 . . 113 Remotely . | . . . . . . . Salvage Created 554 | . 260 122 36 . . 136 Parts 39 | . 21 7 4 . . 7 Haulers Intercepted . | . . . . . . . Recyclers Shooed 1 | . . . . . . 1 Parts Field Recycled . | . . . . . . . Retrieved Matter . | . . . . . . . Parts Self-Destructed . | . . . . . . . Prevented . | . . . . . . . Kills | -11 -10 -9 -9 -9 -8 -8 ------- Run | Yrd Mat Mat Min Exi Min Mat Combat Hostiles Destroyed 14 | . 7 2 3 . . 2 Guns 14 | . 7 2 3 . . 2 Classes Destroyed 5 | . 4 1 . . . . Operator 1 | . 1 . . . . . Watcher 5 | . 3 1 . . . 1 Swarmer 6 | . 3 . 3 . . . Grunt 6 | . 4 1 . . . 1 Sentry 2 | . . 1 . . . 1 Best Kill Streak 3 | . 2 1 3 . . 1 Combat Bots Only 3 | . 2 1 3 . . 1 Max Kills in Single Turn 2 | . 1 1 2 . . 1 Gunslinging 1 | . . . 1 . . . Exploded . | . . . . . . . Melee . | . . . . . . . Uniques/NPCs Destroyed . | . . . . . . . Combat | -11 -10 -9 -9 -9 -8 -8 -------- Run | Yrd Mat Mat Min Exi Min Mat Hostile Shots Fired 118 | . 39 24 4 . . 51 Missed 35 | . 18 7 . . . 10 Damage Taken 1527 | . 218 232 34 . . 1043 Core 668 | . 21 79 10 . . 558 Absorbed by Shields . | . . . . . . . Core Remaining (%) 89 | 100 91 . . . 77 . Volleys Fired 72 | . 31 27 3 . . 11 Largest 2 | . 2 2 2 . . 2 Hottest 80 | . 40 80 80 . . 80 Shots Fired 130 | . 62 40 6 . . 22 Gun 130 | . 62 40 6 . . 22 Cannon . | . . . . . . . Launcher . | . . . . . . . Special . | . . . . . . . Kinetic 98 | . 62 36 . . . . Thermal 32 | . . 4 6 . . 22 Explosive . | . . . . . . . Electromagnetic . | . . . . . . . Robot Hit Streak 11 | . 8 11 3 . . 8 Robot Miss Streak 4 | . 3 4 2 . . 3 Penetration Max . | . . . . . . . Secondary Targets 2 | . 1 . 1 . . . Max Gunslinging Chain 1 | . 1 . 1 . . . Shots Hit Robots 79 | . 34 29 3 . . 13 Core Hits 35 | . 18 6 3 . . 8 Critical Kills . | . . . . . . . Critical Parts Destroyed 2 | . 1 1 . . . . Critical Strikes 2 | . 1 1 . . . . Destroy 2 | . 1 1 . . . . Melee Attacks . | . . . . . . . Impact . | . . . . . . . Slashing . | . . . . . . . Piercing . | . . . . . . . Sneak Attacks . | . . . . . . . Combat Hostiles . | . . . . . . . Follow-up Attacks . | . . . . . . . Damage Inflicted 992 | . 444 370 32 . . 146 Guns 992 | . 444 370 32 . . 146 Cannons . | . . . . . . . Explosions . | . . . . . . . Melee . | . . . . . . . Ramming . | . . . . . . . Kinetic 779 | . 444 335 . . . . Thermal 213 | . . 35 32 . . 146 Explosive . | . . . . . . . Electromagnetic . | . . . . . . . Impact . | . . . . . . . Slashing . | . . . . . . . Piercing . | . . . . . . . Highest Corruption . | . . . . . . . Average Corruption . | . . . . . . . Corruption Purged . | . . . . . . . Corruption Blocked . | . . . . . . . Overload Shots . | . . . . . . . Overflow Damage . | . . . . . . . Projectiles . | . . . . . . . Explosions . | . . . . . . . Melee . | . . . . . . . Knockbacks . | . . . . . . . Impact . | . . . . . . . Kinetic . | . . . . . . . Secondary . | . . . . . . . Self-Inflicted Damage . | . . . . . . . Shots . | . . . . . . . Rammed . | . . . . . . . Targets Rammed . | . . . . . . . Kicked . | . . . . . . . Crushed . | . . . . . . . Highest Temperature 96 | . 5 18 27 . . 96 Average Temperature 25 | . 5 10 14 . . 32 Received Heat Transfer 381 | . 96 87 . . . 198 Siege Activations . | . . . . . . . Robots Corrupted . | . . . . . . . Combat Hostiles . | . . . . . . . Parts Fried . | . . . . . . . Impact Corruptions . | . . . . . . . Robots Melted . | . . . . . . . Combat Hostiles . | . . . . . . . Parts Melted 1 | . . . . . . 1 Heat Transferred 475 | . . 75 75 . . 325 Parts Sabotaged . | . . . . . . . Parts Stolen . | . . . . . . . Parts Stripped . | . . . . . . . Power Chain Reactions . | . . . . . . . Alert | -11 -10 -9 -9 -9 -8 -8 ------- Run | Yrd Mat Mat Min Exi Min Mat Peak Influence 237 | . 237 107 98 . . 46 Initial 15 | . . 15 13 . . . Average 41 | . 87 63 96 . . 9 Maximum Alert Level 1 | . 1 . . . . . Low Security (%) 99 | 100 97 100 100 . 100 100 Level 1 . | . 2 . . . . . Level 2 . | . . . . . . . Level 3 . | . . . . . . . Level 4 . | . . . . . . . Level 5 . | . . . . . . . High Security . | . . . . . . . Max Security . | . . . . . . . Squads Dispatched 3 | . 1 1 . . . 1 Investigation . | . . . . . . . Extermination . | . . . . . . . Reinforcement 3 | . 1 1 . . . 1 Assault . | . . . . . . . Garrison . | . . . . . . . Intercept . | . . . . . . . Searches Triggered . | . . . . . . . Construction Impeded . | . . . . . . . Haulers Reinforced . | . . . . . . . Active Scanning Responses . | . . . . . . . Cargo Convoy Interrupts . | . . . . . . . Stealth | -11 -10 -9 -9 -9 -8 -8 --------- Run | Yrd Mat Mat Min Exi Min Mat Distress Signals 2 | . . . . . . 2 Communications Jammed . | . . . . . . . Distress Signals . | . . . . . . . Times Spotted 39 | . 12 6 1 . . 20 Peak Tracking Total 7 | . 5 2 1 . . 7 Tactical Retreats 4 | . . 1 . . . 3 Traps | -11 -10 -9 -9 -9 -8 -8 ------- Run | Yrd Mat Mat Min Exi Min Mat Traps Triggered . | . . . . . . . Indirectly . | . . . . . . . Trap Hack Attempts . | . . . . . . . Triggered . | . . . . . . . Disarmed . | . . . . . . . Reprogrammed . | . . . . . . . Reused . | . . . . . . . Traps Extracted . | . . . . . . . Installed . | . . . . . . . Triggered . | . . . . . . . Machines | -11 -10 -9 -9 -9 -8 -8 ---------- Run | Yrd Mat Mat Min Exi Min Mat Machines Disabled 1 | . 1 . . . . . Max in Single Turn 1 | . 1 . . . . . Machines Repaired . | . . . . . . . Machines Dismantled . | . . . . . . . Machines Sabotaged . | . . . . . . . Overloaded Fab Kills . | . . . . . . . Hacking | -11 -10 -9 -9 -9 -8 -8 --------- Run | Yrd Mat Mat Min Exi Min Mat Machines Accessed 9 | . 3 4 . 1 . 1 Terminals 6 | . 2 3 . . . 1 Fabricators . | . . . . . . . Repair Stations . | . . . . . . . Recycling Units 2 | . 1 1 . . . . Scanalyzers . | . . . . . . . Garrison Access . | . . . . . . . Total Hacks 23 | . 6 12 . 1 . 4 Successful 19 | . 5 9 . 1 . 4 Failed 4 | . 1 3 . . . . Catastrophic 1 | . 1 . . . . . Database Lockouts . | . . . . . . . Manual 14 | . 2 8 . 1 . 3 Terminals 19 | . 4 11 . . . 4 Fabricators . | . . . . . . . Repair Stations . | . . . . . . . Recycling Units 3 | . 2 1 . . . . Scanalyzers . | . . . . . . . Garrison Access . | . . . . . . . Terminal Hacks 10 | . 2 5 . 1 . 2 Record 3 | . 2 1 . . . . Prototype ID Bank 1 | . . . . . . 1 Branch Access Points 2 | . . 1 . . . 1 Emergency Access Points 1 | . . 1 . . . . Unreport Threat 1 | . . 1 . . . . Locate Traps 1 | . . 1 . . . . Derelict Proto ID Bank 1 | . . . . 1 . . Fabricator Hacks . | . . . . . . . Repair Station Hacks . | . . . . . . . Recycling Unit Hacks 2 | . 2 . . . . . Report Inventory 1 | . 1 . . . . . Retrieve Components 1 | . 1 . . . . . Scanalyzer . | . . . . . . . Garrison Access Hacks . | . . . . . . . Unauthorized Hacks 7 | . 1 4 . . . 2 Terminals 6 | . 1 3 . . . 2 Assimilate 1 | . . . . . . 1 Botnet 5 | . 1 3 . . . 1 Fabricators . | . . . . . . . Repair Stations . | . . . . . . . Recycling Units 1 | . . 1 . . . . Mask 1 | . . 1 . . . . Scanalyzers . | . . . . . . . Garrison Access . | . . . . . . . Data Cores Recovered . | . . . . . . . Used . | . . . . . . . Hacking Detections 6 | . 2 3 . . . 1 Full Trace Events . | . . . . . . . Feedback Events . | . . . . . . . Feedback Blocked . | . . . . . . . Robot Schematics Acquired . | . . . . . . . Robots Built . | . . . . . . . Authchips . | . . . . . . . Time . | . . . . . . . Total Robot Build Rating . | . . . . . . . Part Schematics Acquired . | . . . . . . . Parts Built . | . . . . . . . Authchips . | . . . . . . . Time . | . . . . . . . Total Part Build Rating . | . . . . . . . Parts Repaired . | . . . . . . . Time . | . . . . . . . Parts Recycled . | . . . . . . . Recycled Matter . | . . . . . . . Retrieved Matter . | . . . . . . . Retrieved Components 7 | . 7 . . . . . Parts Scanalyzed . | . . . . . . . Part Schematics Acquired . | . . . . . . . Parts Damaged . | . . . . . . . Bothacking | -11 -10 -9 -9 -9 -8 -8 ------------ Run | Yrd Mat Mat Min Exi Min Mat Used RIF Installer . | . . . . . . . Robots Hacked . | . . . . . . . Non-combat . | . . . . . . . Combat . | . . . . . . . Robot Hacks Applied . | . . . . . . . Relay Couplers Released . | . . . . . . . Fabnet Peak Effective % . | . . . . . . . Robots Rewired . | . . . . . . . Allies Hacked . | . . . . . . . Hacks Repelled . | . . . . . . . Allies | -11 -10 -9 -9 -9 -8 -8 -------- Run | Yrd Mat Mat Min Exi Min Mat Total Allies 1 | . . . . . . 1 Largest Group 1 | . . . . . . 1 Highest-Rated Group 10 | . . . . . . 10 Highest-Rated Ally 10 | . . . . . . 10 Total Orders . | . . . . . . . Ally Attacks . | . . . . . . . Total Damage . | . . . . . . . Kills . | . . . . . . . Allies Corrupted . | . . . . . . . Allies Melted . | . . . . . . . Intel | -11 -10 -9 -9 -9 -8 -8 ------- Run | Yrd Mat Mat Min Exi Min Mat Robot Analysis Total . | . . . . . . . Derelict Logs Recovered . | . . . . . . . Drone Launches . | . . . . . . . Drone Recoveries . | . . . . . . . Exploration | -11 -10 -9 -9 -9 -8 -8 ------------- Run | Yrd Mat Mat Min Exi Min Mat Turns Passed 2661 | 49 471 392 147 506 12 1084 Spaces Moved 1717 | 35 301 255 114 415 11 586 Core 16 | 7 . . . . . 9 Treads 117 | . . . . . . 117 Legs 1584 | 28 301 255 114 415 11 460 Wheels . | . . . . . . . Hover . | . . . . . . . Flight . | . . . . . . . Fastest Speed 50 | 50 120 120 120 120 120 120 Average Speed 131 | 106 120 120 120 120 120 153 Slowest Speed 250 | 120 120 120 120 120 120 250 Overloaded Moves . | . . . . . . . Propulsion Burnouts . | . . . . . . . Robots Hopped . | . . . . . . . Cave-ins Triggered . | . . . . . . . Time Travels 1 | . . . . 1 . . Exploration Rate (%) 34 | 3 37 33 31 89 10 35 Regions Visited 6 Branch Regions 3 Pre-discovered Areas . | . . . . . . . Known Exits Taken 1 | . . 1 . . . . Unknown Exits Taken 5 | 1 1 . 1 1 1 . Scrap Searched 1 | . . . 1 . . . Spaces Dug . | . . . . . . . Terrain Destroyed . | . . . . . . . Melee . | . . . . . . . Projectile . | . . . . . . . AOE . | . . . . . . . Terrain Rammed . | . . . . . . . Walls Destroyed . | . . . . . . . Machines Disabled . | . . . . . . . Actions | -11 -10 -9 -9 -9 -8 -8 --------- Run | Yrd Mat Mat Min Exi Min Mat Total 1997 | 47 349 301 118 424 10 748 Wait 152 | 1 6 14 . . . 131 Move 1711 | 34 300 254 113 414 10 586 Hop . | . . . . . . . Pick Up 28 | 6 5 2 1 6 . 8 Fast Attach . | . . . . . . . Attach 17 | 6 1 2 1 2 . 5 Detach 2 | . . . . 2 . . Swap 7 | . 3 1 . . . 3 Drop 8 | . 3 1 . . . 4 Fire 72 | . 31 27 3 . . 11 Melee . | . . . . . . . Ram . | . . . . . . . Kick . | . . . . . . . Crush . | . . . . . . . Escape Stasis . | . . . . . . . Rewire . | . . . . . . . Trap . | . . . . . . . Miscellaneous . | . . . . . . . Route ------- -11/Scrapyard -10/Materials -9/Materials -9/Mines -9/Exiles -8/Mines -8/Materials (discovered 1 exit: [*Fac]) History --------- Turn | Location | Event 6 | -11/Scrapyard | Discovered new exit (range 15) 50 | -11/Scrapyard | Entered Materials 331 | -10/Materials | Build established: Mutant 501 | -10/Materials | Discovered new exit (range 6) 521 | -10/Materials | Entered another Materials area 521 | -9/Materials | Evolved 2 slots: Utility x2 865 | -9/Materials | Identified exit to Mines 913 | -9/Materials | Entered Mines 1024 | -9/Mines | Deemed a non-threat by the Exiles lab entrance 1024 | -9/Mines | Discovered new exit (range 5) 1060 | -9/Mines | Entered Exiles 1093 | -9/Exiles | Met 8R-AWN 1113 | -9/Exiles | Met EX-HEX 1149 | -9/Exiles | Met EX-BIN 1165 | -9/Exiles | Aligned with FarCom system 1167 | -9/Exiles | Given EX-Vault access code 1195 | -9/Exiles | Opened EX-Vault 1203 | -9/Exiles | Found Prototype Processor 1205 | -9/Exiles | Found Prototype Device 1209 | -9/Exiles | Found Prototype Device 1211 | -9/Exiles | Identified Supersonic Drone Bay 1213 | -9/Exiles | Identified Chronowheel 1213 | -9/Exiles | Activated Chronowheel 1213 | -9/Exiles | Spacetime reconverged on an earlier point 1215 | -9/Exiles | Identified Modified TNC 1241 | -9/Exiles | Warned to stay clear of 0b10 Research branches 1273 | -9/Exiles | Met EX-DEC 1391 | -9/Exiles | Visited The Gauntlet 1553 | -9/Exiles | Discovered new exit (range 12) 1566 | -9/Exiles | Stole two prototypes: Supersonic Drone Bay, Modified TNC 1566 | -9/Exiles | Entered Mines 1571 | -8/Mines | Discovered new exit (range 8) 1578 | -8/Mines | Entered Materials 1578 | -8/Materials | Evolved 2 slots: Power x1, Utility x1 1865 | -8/Materials | Build established: Skirmisher 2637 | -8/Materials | Discovered new exit (range 10) 2652 | -8/Materials | Core integrity fell below 50% 2658 | -8/Materials | Core integrity fell below 20% 2662 | -8/Materials | Destroyed by G-47 Trooper with Particle Gun Last Messages --------------- M-28 Smith repairs Imp. Sensor Array. R-06 Scavenger collects Imp. Signal Interpreter. O-16 Technician uses terminal to summon reinforcements. ALERT: Hostiles spotted, dispatching reinforcements to Terminal M010. O-16 Technician locks terminal. Technician 3a reveals location of hidden door. W-25 Informer sends out distress signal. EXIT=FOUND Sml. Laser destroyed. Lgt. Treads destroyed. Sml. Laser destroyed. Lgt. Nuclear Core destroyed. Knocked back. U-05 Engineer builds a Wall. Sensor Array destroyed. Knocked back. Lgt. Deuterium Engine destroyed. Knocked back. Map ----- +----------------------------------------------------+ | ?????????????????# + | | ?????????????????# # | | ?????????????????# ###+####?? | | ?????????????????# # #?? | | ?????????????????# # """ #?? | | ?????????????????# # """ #?? | | ?????????????????# # """ !#?? | | ?????????????????# # #?? | | ?????????????????# # [ #?? | | ?????????????????/ ###+###### | | ?????????????????# # # | | ?????????????????# # """ # | | ???############### # """ # | | ???# a# """ # | | ???# + # | | ???# % # """ # | | ???# ########### # """ # | | ???# ##????????# # """ # | | ???#gY ##????????# # # | | ???# % ########??# ########## | | ???#%ug# #??# #????????? | | ???# u# #??# #????????? | | ???# # """ #??# #????????? | | ???# l/ """ #?? ????????? | | ???# % % """ #?? h????????? | | ???# H@# +?? g???????? | | ???# ########?# #a??????? | | ???#####????????# #???????? | | ????????????????#######???????? | | ??????????????????????????????? | | ??????????????????????????????? | | ??????????????????????????????? | | ??????????????????????????????? | | ??????????????????????????????? | | ??????????????????????????????? | | ??????????????????????????????? | | ??????????????????????????????? | | ??????????????????????????????? | | ??????????????????????????????? | | ??????????????????????????????? | | ??????????????????????????????? | | ??????????????????????????????? | | ??????????????????????????????? | | ??????????????????????????????? | | ??????????????????????????????? | | | | | | | | | | | +----------------------------------------------------+ Best States ------------- Heat Dissipation 31 Energy Generation 23 Energy Capacity 335 Matter Stores 300 Matter Capacity 300 Sight Range 16 Robot Scan Range 14 Terrain Scan Density 10 ECM Strength 1 Evasion (%) 55 Recoil Reduction 1 Offensive Hacking 10 Item Schematics ----------------- None Robot Schematics ------------------ None Fabricated ------------ Nothing Alien Tech Used ----------------- None Achievements -------------- root@ Challenges ------------ None Game ------ Seed IonHardcellMantle Manual? 0 Play Time 00:24:46 Cumulative 9.7 hours Start 2024.04.09 @ 18:57:36 End 2024.04.09 @ 19:44:35 Sessions 1 Manual Loads 0 Difficulty Rogue Special Mode None Game No. 23 Rogue 23 Adventurer 0 Explorer 0 Win Type - Total 0 Types 0/0/0/0/0/0/0/0/0 Lore% 17 Gallery% 20 Achievement% 19 Wizard Run 0 Options --------- Layout 2 ASCII 0 Keyboard 0 Movement Numpad Keybinds 0 Fullscreen 1 Font 24/Smallcaps Map View 50x44 Zoom Use 0% Tactical HUD 0 Map Filters NONE Filters NONE Steam 1 RUN: 71bbb037-ebb0-45f1-99c1-6c539e5a1585